fUST/lending_fUST_20250917
["ID","MTS","AMOUNT","RATE_DAILY","PERIOD"]
[385886768,1758096638992,-581.29,0.00022191,3]
[385886769,1758096639001,-480.0,0.00022191,3]
[385886770,1758096639010,-480.0,0.00022191,3]
[385886771,1758096639019,-918.31,0.00022191,3]
[385886772,1758096639029,-480.0,0.00022191,3]
[385886773,1758096639038,-480.0,0.00022191,3]
[385886774,1758096639048,-480.0,0.00022191,3]
[385886775,1758096639057,-480.0,0.00022191,3]
[385886776,1758096639066,-480.0,0.00022191,3]
[385886777,1758096639075,-1147.71,0.00022191,3]
[385886778,1758096639084,-805.04,0.00022191,3]
[385886779,1758096639094,-480.0,0.00022191,3]
[385886780,1758096639103,-480.0,0.00022191,3]
[385886781,1758096639112,-480.0,0.00022191,2]
[385886782,1758096639121,-480.0,0.00022191,3]
[385886783,1758096639132,-480.0,0.00022191,3]
[385886784,1758096639142,-480.0,0.00022191,3]
[385886785,1758096639151,-480.0,0.00022191,3]
[385886786,1758096639160,-480.0,0.00022191,3]
[385886787,1758096639170,-480.0,0.00022191,3]
[385886788,1758096639179,-480.0,0.00022191,3]
[385886789,1758096639188,-480.0,0.00022191,3]
[385886790,1758096639198,-2053.49770566,0.00022324,2]
[385886952,1758096643624,-461.92856637,0.00022324,2]
[385887031,1758096647207,-538.96,0.00021917,2]
[385887032,1758096647217,-7.16182628,0.00021917,2]
[385887033,1758096712696,4463.17,0.00020418,2]
[385887034,1758096760967,377.78029891,0.000199,2]
[385887035,1758096761261,377.78029864,0.00021149,2]
[385887036,1758096799395,567.71263717,0.00020573,2]
[385887037,1758096799419,3912.20736283,0.00020573,2]
[385887038,1758096886623,4495.52,0.00020564,2]
[385887039,1758096958456,371.5589317,0.000199,2]
[385887040,1758096958578,371.55893165,0.00021149,2]
[385887041,1758097060507,849.16477382,0.00020414,2]
[385887042,1758097060529,3660.82522618,0.00020414,2]
[385887043,1758097146664,358.7969904,0.000199,2]
[385887044,1758097146771,358.79699016,0.00021149,2]
[385887045,1758097147266,4452.59,0.00020417,2]
[385887046,1758097234962,1169.00079326,0.00020426,2]
[385887047,1758097234984,3295.90920674,0.00020426,2]
[385887048,1758097321101,4408.09,0.00020559,2]
[385887049,1758097330636,334.87719099,0.000199,2]
[385887050,1758097330751,334.87719081,0.00021149,2]
[385887051,1758097404805,1626.25641146,0.00020562,2]
[385887052,1758097404829,2725.72358854,0.00020562,2]
[385887056,1758097488925,4296.6,0.00020558,2]
[385887057,1758097526931,312.55204493,0.000199,2]
[385887058,1758097527056,312.55204475,0.00021149,2]
[385887059,1758097578650,2352.58232178,0.00020419,2]
[385887060,1758097578672,1889.32767822,0.00020419,2]
[385887062,1758097663196,4187.92,0.00020433,2]
[385887064,1758097712257,291.71524196,0.000199,2]
[385887065,1758097712360,291.71524176,0.00021149,2]
[385887070,1758097746729,3339.33183806,0.00020415,2]
[385887071,1758097746751,795.28816194,0.00020415,2]
[385887073,1758097830535,4082.0,0.00020572,2]
[385887108,1758097832721,-1200.0,0.00021386,2]
[385887110,1758097832731,-179.82017982,0.00021466,2]
[385887112,1758097832741,-151.38939389,0.00021513,2]
[385887114,1758097832750,-0.24041686,0.00021535,2]
[385887118,1758097832774,-1199.75958314,0.00021535,2]
[385887119,1758097832783,-300.0,0.00021535,2]
[385887121,1758097832792,-8164.0,0.00021551,2]
[385887123,1758097832801,-800.0,0.0002161,2]
[385887125,1758097832811,-800.0,0.00021614,2]
[385887127,1758097832820,-800.0,0.0002163,2]
[385887129,1758097832829,-800.0,0.00021639,2]
[385887131,1758097832838,-800.0,0.00021642,2]
[385887133,1758097832847,-800.0,0.00021642,2]
[385887135,1758097832856,-800.0,0.0002167,2]
[385887137,1758097832865,-800.0,0.00021678,2]
[385887139,1758097832875,-800.0,0.00021691,2]
[385887141,1758097832884,-800.0,0.00021692,2]
[385887143,1758097832893,-800.0,0.00021702,2]
[385887145,1758097832902,-800.0,0.00021713,2]
[385887146,1758097832911,-800.0,0.00021715,2]
[385887148,1758097832920,-800.0,0.00021718,2]
[385887150,1758097832929,-800.0,0.00021718,2]
[385887152,1758097832938,-800.0,0.00021722,2]
[385887154,1758097832947,-800.0,0.00021748,2]
[385887156,1758097832956,-800.0,0.00021758,2]
[385887158,1758097832965,-800.0,0.00021763,2]
[385887160,1758097832974,-158.56763096,0.00021769,2]
[385887162,1758097832983,-10032.83869016,0.00021773,2]
[385887389,1758097838554,-5494.47032633,0.00021773,2]
[385887390,1758097838564,-800.0,0.00021779,2]
[385887391,1758097838573,-221.03859899,0.00021802,2]
[385887392,1758097838582,-800.0,0.00021817,2]
[385887393,1758097838592,-800.0,0.00021819,2]
[385887394,1758097838600,-800.0,0.00021834,2]
[385887395,1758097838609,-197.18801867,0.00021838,2]
[385887399,1758097838741,-602.81198133,0.00021838,2]
[385887400,1758097838750,-698.31090992,0.00021852,2]
[385887401,1758097838761,-101.68909008,0.00021852,2]
[385887402,1758097838771,-800.0,0.00021855,2]
[385887403,1758097838780,-800.0,0.00021859,2]
[385887404,1758097838789,-800.0,0.00021869,2]
[385887405,1758097838798,-800.0,0.00021873,2]
[385887406,1758097838808,-659.9784258,0.00021903,2]
[385887407,1758097838817,-481.02964723,0.00021917,2]
[385887408,1758097838826,-13.30927457,0.00021917,2]
[385887409,1758097838837,-466.69072543,0.00021917,2]
[385887410,1758097838846,-480.0,0.00021917,2]
[385887411,1758097838855,-17.16257971,0.00021917,2]
[385887412,1758097838866,-462.83742029,0.00021917,2]
[385887413,1758097838875,-480.0,0.00021917,2]
[385887414,1758097838884,-61.06458072,0.00021917,2]
[385887415,1758097838895,-418.93541928,0.00021917,2]
[385887416,1758097838904,-556.57524592,0.00021917,2]
[385887417,1758097838914,-480.0,0.00021917,2]
[385887418,1758097838923,-480.0,0.00021917,2]
[385887419,1758097838931,-480.0,0.00021917,2]
[385887420,1758097838940,-526.1207592,0.00021917,2]
[385887421,1758097838949,-480.0,0.00021917,2]
[385887422,1758097838959,-480.0,0.00021917,2]
[385887423,1758097838967,-480.0,0.00021917,2]
[385887424,1758097838976,-480.0,0.00021917,2]
[385887425,1758097838986,-536.38,0.00021917,2]
[385887426,1758097838995,-184.0,0.00021917,2]
[385887427,1758097839004,-4159.13,0.00021917,2]
[385887428,1758097839013,-161.87885026,0.00021917,2]
[385887429,1758097839022,-890.08,0.00021917,2]
[385887430,1758097839031,-480.0,0.00021917,2]
[385887431,1758097839040,-737.95,0.00021917,2]
[385887432,1758097839049,-274.61080176,0.00021917,2]
[385887433,1758097839058,-480.0,0.00021917,2]
[385887434,1758097839067,-480.0,0.00021917,2]
[385887435,1758097839076,-2487.61,0.00021917,2]
[385887436,1758097839084,-480.0,0.00021917,2]
[385887437,1758097839094,-480.0,0.00021917,2]
[385887438,1758097839103,-38.00335493,0.00021917,2]
[385887440,1758097839115,-441.99664507,0.00021917,2]
[385887442,1758097839124,-1299.27,0.00021917,2]
[385887444,1758097839133,-720.5,0.00021917,2]
[385887446,1758097839142,-6662.90627535,0.00021917,2]
[385887447,1758097839153,-1763.56372465,0.00021917,2]
[385887448,1758097839163,-480.0,0.00021917,2]
[385887449,1758097839172,-480.0,0.00021917,2]
[385887450,1758097839182,-759.37,0.00021917,2]
[385887451,1758097839191,-2056.44,0.00021917,2]
[385887452,1758097839202,-965.81,0.00021917,2]
[385887453,1758097839212,-480.0,0.00021917,2]
[385887454,1758097839221,-532.85,0.00021917,2]
[385887455,1758097839230,-986.74,0.00021917,2]
[385887456,1758097839240,-480.0,0.00021917,2]
[385887457,1758097839249,-480.0,0.00021917,2]
[385887458,1758097839258,-1193.57,0.00021917,2]
[385887459,1758097839267,-480.0,0.00021917,2]
[385887460,1758097839276,-480.0,0.00021917,2]
[385887461,1758097839286,-480.0,0.00021917,2]
[385887462,1758097839295,-480.0,0.00021917,2]
[385887463,1758097839303,-480.0,0.00021917,2]
[385887464,1758097839312,-480.0,0.00021917,2]
[385887465,1758097839321,-480.0,0.00021917,2]
[385887466,1758097839330,-480.0,0.00021917,2]
[385887467,1758097839339,-480.0,0.00021917,2]
[385887468,1758097839348,-480.0,0.00021917,2]
[385887469,1758097839357,-841.78,0.00021917,2]
[385887470,1758097839366,-480.0,0.00021917,2]
[385887471,1758097839375,-480.0,0.00021917,2]
[385887472,1758097839384,-1052.06,0.00021917,2]
[385887473,1758097839393,-898.64,0.00021917,2]
[385887474,1758097839402,-480.0,0.00021917,2]
[385887475,1758097839410,-480.0,0.00021917,2]
[385887476,1758097839419,-480.0,0.00021917,2]
[385887477,1758097839429,-707.91,0.00021917,2]
[385887478,1758097839438,-516.5,0.00021917,2]
[385887479,1758097839447,-480.0,0.00021917,2]
[385887480,1758097839455,-480.0,0.00021917,2]
[385887481,1758097839464,-480.0,0.00021917,2]
[385887482,1758097839473,-1414.3,0.00021917,2]
[385887483,1758097839483,-480.0,0.00021917,2]
[385887484,1758097839492,-480.0,0.00021917,2]
[385887485,1758097839501,-480.0,0.00021917,2]
[385887486,1758097839510,-480.0,0.00021917,2]
[385887487,1758097839520,-800.0,0.00021918,2]
[385887488,1758097839529,-816.83937566,0.00021973,2]
[385887489,1758097839539,-715.49266476,0.00021973,2]
[385887490,1758097839548,-77.7947969,0.00021973,2]
[385887506,1758097840573,-744.3223753,0.00021973,2]
[385887507,1758097840584,-3285.1802201,0.00021973,2]
[385887508,1758097840594,-160.0,0.00021979,2]
[385887509,1758097840604,-160.0,0.00021979,2]
[385887510,1758097840614,-233.34517135,0.00021979,2]
[385887511,1758097840623,-160.0,0.00021981,2]
[385887512,1758097840632,-160.0,0.00021981,2]
[385887513,1758097840642,-160.0,0.00021983,2]
[385887514,1758097840651,-152.0,0.00022,2]
[385887515,1758097840661,-480.0,0.00022191,3]
[385887516,1758097840670,-480.0,0.00022191,3]
[385887517,1758097840680,-480.0,0.00022191,3]
[385887518,1758097840689,-480.0,0.00022191,3]
[385887519,1758097840699,-480.0,0.00022191,3]
[385887520,1758097840708,-480.0,0.00022191,3]
[385887521,1758097840717,-480.0,0.00022191,3]
[385887522,1758097840727,-480.0,0.00022191,3]
[385887523,1758097840736,-480.0,0.00022191,3]
[385887524,1758097840746,-480.0,0.00022191,3]
[385887525,1758097840755,-480.0,0.00022191,3]
[385887526,1758097840764,-480.0,0.00022191,3]
[385887527,1758097840774,-536.38,0.00022191,3]
[385887528,1758097840783,-4159.13,0.00022191,3]
[385887529,1758097840793,-890.08,0.00022191,3]
[385887530,1758097840802,-737.95,0.00022191,3]
[385887531,1758097840813,-480.0,0.00022191,3]
[385887532,1758097840822,-480.0,0.00022191,3]
[385887533,1758097840832,-2487.61,0.00022191,3]
[385887534,1758097840841,-480.0,0.00022191,3]
[385887535,1758097840851,-480.0,0.00022191,3]
[385887536,1758097840860,-480.0,0.00022191,3]
[385887537,1758097840870,-1299.27,0.00022191,3]
[385887538,1758097840880,-720.5,0.00022191,3]
[385887539,1758097840889,-8426.47,0.00022191,3]
[385887540,1758097840899,-480.0,0.00022191,3]
[385887541,1758097840908,-480.0,0.00022191,3]
[385887542,1758097840918,-759.37,0.00022191,3]
[385887543,1758097840928,-2056.44,0.00022191,3]
[385887544,1758097840938,-965.81,0.00022191,3]
[385887545,1758097840947,-480.0,0.00022191,3]
[385887546,1758097840956,-532.85,0.00022191,3]
[385887547,1758097840966,-986.74,0.00022191,3]
[385887548,1758097840976,-480.0,0.00022191,3]
[385887549,1758097840986,-480.0,0.00022191,3]
[385887550,1758097840996,-1193.57,0.00022191,3]
[385887551,1758097841006,-480.0,0.00022191,3]
[385887552,1758097841015,-480.0,0.00022191,3]
[385887553,1758097841025,-480.0,0.00022191,3]
[385887554,1758097841034,-480.0,0.00022191,3]
[385887555,1758097841043,-480.0,0.00022191,3]
[385887556,1758097841052,-480.0,0.00022191,3]
[385887557,1758097841062,-480.0,0.00022191,3]
[385887558,1758097841072,-480.0,0.00022191,3]
[385887559,1758097841081,-480.0,0.00022191,3]
[385887560,1758097841090,-480.0,0.00022191,3]
[385887561,1758097841099,-841.78,0.00022191,3]
[385887562,1758097841108,-480.0,0.00022191,3]
[385887563,1758097841117,-480.0,0.00022191,3]
[385887564,1758097841126,-1052.06,0.00022191,3]
[385887565,1758097841135,-898.64,0.00022191,3]
[385887566,1758097841144,-480.0,0.00022191,3]
[385887567,1758097841153,-480.0,0.00022191,3]
[385887568,1758097841163,-480.0,0.00022191,3]
[385887569,1758097841171,-707.91,0.00022191,3]
[385887570,1758097841180,-516.5,0.00022191,3]
[385887571,1758097841190,-480.0,0.00022191,3]
[385887572,1758097841199,-480.0,0.00022191,3]
[385887573,1758097841208,-480.0,0.00022191,3]
[385887574,1758097841217,-1414.3,0.00022191,3]
[385887575,1758097841226,-480.0,0.00022191,2]
[385887576,1758097841235,-480.0,0.00022191,3]
[385887577,1758097841244,-480.0,0.00022191,3]
[385887578,1758097841253,-480.0,0.00022191,3]
[385887579,1758097841262,-1916.6252472,0.00022196,2]
[385887580,1758097841271,-1332.62774056,0.00022251,2]
[385887581,1758097841280,-251.16100922,0.00022251,2]
[385887582,1758097841290,-300.0,0.00022354,20]
[385887583,1758097841299,-300.0,0.00022354,20]
[385887584,1758097841308,-300.0,0.00022354,20]
[385887585,1758097841317,-300.0,0.00022354,20]
[385887586,1758097841332,-300.0,0.00022354,20]
[385887587,1758097841341,-300.0,0.00022354,20]
[385887588,1758097841351,-300.0,0.00022354,20]
[385887589,1758097841361,-300.0,0.00022354,20]
[385887590,1758097841371,-300.0,0.00022354,20]
[385887591,1758097841381,-300.0,0.00022354,20]
[385887592,1758097841390,-300.0,0.00022354,20]
[385887593,1758097841400,-300.0,0.00022354,20]
[385887594,1758097841409,-300.0,0.00022354,20]
[385887595,1758097841418,-300.0,0.00022354,20]
[385887596,1758097841427,-300.0,0.00022354,20]
[385887597,1758097841436,-610.289039,0.00022365,2]
[385887598,1758097841446,-291.71524176,0.00022398,2]
[385887599,1758097841455,-383.40593272,0.00022423,2]
[385887600,1758097841464,-220.72686685,0.00022464,2]
[385887601,1758097841473,-480.0,0.00022465,3]
[385887602,1758097841482,-480.0,0.00022465,3]
[385887603,1758097841492,-480.0,0.00022465,3]
[385887604,1758097841501,-480.0,0.00022465,3]
[385887605,1758097841510,-480.0,0.00022465,3]
[385887606,1758097841519,-480.0,0.00022465,3]
[385887607,1758097841528,-480.0,0.00022465,3]
[385887608,1758097841538,-480.0,0.00022465,3]
[385887609,1758097841546,-480.0,0.00022465,3]
[385887610,1758097841555,-480.0,0.00022465,3]
[385887611,1758097841564,-480.0,0.00022465,3]
[385887612,1758097841573,-480.0,0.00022465,3]
[385887613,1758097841583,-536.38,0.00022465,3]
[385887614,1758097841591,-4159.13,0.00022465,3]
[385887615,1758097841601,-890.08,0.00022465,3]
[385887616,1758097841610,-737.95,0.00022465,3]
[385887617,1758097841619,-480.0,0.00022465,3]
[385887618,1758097841628,-480.0,0.00022465,3]
[385887619,1758097841637,-2487.61,0.00022465,3]
[385887620,1758097841646,-480.0,0.00022465,3]
[385887621,1758097841655,-480.0,0.00022465,3]
[385887622,1758097841664,-480.0,0.00022465,3]
[385887623,1758097841673,-1299.27,0.00022465,3]
[385887624,1758097841682,-720.5,0.00022465,3]
[385887625,1758097841691,-8426.47,0.00022465,3]
[385887626,1758097841700,-480.0,0.00022465,3]
[385887627,1758097841709,-480.0,0.00022465,3]
[385887628,1758097841719,-759.37,0.00022465,3]
[385887629,1758097841728,-2056.44,0.00022465,3]
[385887630,1758097841736,-727.43174665,0.00022465,3]
[385887631,1758097841817,-238.37825335,0.00022465,3]
[385887632,1758097841827,-480.0,0.00022465,3]
[385887633,1758097841836,-532.85,0.00022465,3]
[385887634,1758097841845,-986.74,0.00022465,3]
[385887635,1758097841854,-480.0,0.00022465,3]
[385887636,1758097841863,-480.0,0.00022465,3]
[385887637,1758097841872,-1193.57,0.00022465,3]
[385887638,1758097841881,-480.0,0.00022465,3]
[385887639,1758097841891,-480.0,0.00022465,3]
[385887640,1758097841901,-480.0,0.00022465,3]
[385887641,1758097841911,-480.0,0.00022465,3]
[385887642,1758097841922,-480.0,0.00022465,3]
[385887643,1758097841931,-480.0,0.00022465,3]
[385887644,1758097841940,-480.0,0.00022465,3]
[385887645,1758097841949,-480.0,0.00022465,3]
[385887646,1758097841958,-480.0,0.00022465,3]
[385887647,1758097841967,-480.0,0.00022465,3]
[385887648,1758097841976,-573.00234607,0.00022465,3]
[385887727,1758097843923,-480.0,0.00021917,2]
[385887730,1758097843936,-480.0,0.00022191,3]
[385887733,1758097843945,-268.77765393,0.00022465,3]
[385887735,1758097843953,-480.0,0.00022465,3]
[385887737,1758097843962,-480.0,0.00022465,3]
[385887739,1758097843971,-1052.06,0.00022465,3]
[385887741,1758097843981,-898.64,0.00022465,3]
[385887743,1758097843990,-480.0,0.00022465,3]
[385887745,1758097844002,-480.0,0.00022465,3]
[385887747,1758097844011,-480.0,0.00022465,3]
[385887750,1758097844021,-707.91,0.00022465,3]
[385887752,1758097844030,-516.5,0.00022465,3]
[385887754,1758097844039,-480.0,0.00022465,3]
[385887756,1758097844049,-480.0,0.00022465,3]
[385887758,1758097844058,-480.0,0.00022465,3]
[385887760,1758097844068,-1414.3,0.00022465,3]
[385887761,1758097844077,-480.0,0.00022465,2]
[385887764,1758097844086,-480.0,0.00022465,3]
[385887765,1758097844097,-480.0,0.00022465,3]
[385887767,1758097844106,-480.0,0.00022465,3]
[385887770,1758097844115,-480.0,0.00022465,3]
[385887771,1758097844124,-7033.46029933,0.00022531,2]
[385887774,1758097844136,-5212.53970067,0.00022531,2]
[385887776,1758097844145,-500.0,0.000227,2]
[385887778,1758097844154,-72.7369964,0.0002272,2]
[385887780,1758097844166,-256.2,0.0002272,2]
[385888037,1758097846668,-171.0630036,0.0002272,2]
[385888039,1758097846679,-500.0,0.00022729,2]
[385888041,1758097846688,-505.61058409,0.00022729,2]
[385888043,1758097846697,-500.0,0.00022729,2]
[385888045,1758097846706,-502.73658448,0.00022729,2]
[385888047,1758097846716,-480.0,0.00022739,3]
[385888049,1758097846726,-480.0,0.00022739,3]
[385888051,1758097846735,-480.0,0.00022739,3]
[385888053,1758097846745,-480.0,0.00022739,3]
[385888055,1758097846754,-480.0,0.00022739,3]
[385888057,1758097846763,-480.0,0.00022739,3]
[385888058,1758097846772,-480.0,0.00022739,3]
[385888060,1758097846781,-480.0,0.00022739,3]
[385888062,1758097846790,-480.0,0.00022739,3]
[385888064,1758097846799,-480.0,0.00022739,3]
[385888066,1758097846808,-480.0,0.00022739,3]
[385888068,1758097846817,-536.38,0.00022739,3]
[385888070,1758097846827,-4159.13,0.00022739,3]
[385888072,1758097846836,-890.08,0.00022739,3]
[385888074,1758097846845,-737.95,0.00022739,3]
[385888076,1758097846855,-480.0,0.00022739,3]
[385888078,1758097846864,-278.385206,0.00022739,3]
[385888080,1758097846873,-480.0,0.00022739,3]
[385888082,1758097846882,-2487.61,0.00022739,3]
[385888084,1758097846891,-480.0,0.00022739,3]
[385888086,1758097846900,-480.0,0.00022739,3]
[385888088,1758097846909,-1299.27,0.00022739,3]
[385888090,1758097846919,-8426.47,0.00022739,3]
[385888092,1758097846928,-480.0,0.00022739,3]
[385888094,1758097846937,-480.0,0.00022739,3]
[385888096,1758097846946,-759.37,0.00022739,3]
[385888098,1758097846955,-2056.44,0.00022739,3]
[385888100,1758097846964,-965.81,0.00022739,3]
[385888102,1758097846973,-480.0,0.00022739,3]
[385888104,1758097846982,-532.85,0.00022739,3]
[385888106,1758097846991,-986.74,0.00022739,3]
[385888108,1758097847001,-480.0,0.00022739,3]
[385888110,1758097847010,-480.0,0.00022739,3]
[385888112,1758097847019,-1193.57,0.00022739,3]
[385888114,1758097847028,-480.0,0.00022739,3]
[385888116,1758097847037,-45.05668636,0.00022739,3]
[385888118,1758097847049,-434.94331364,0.00022739,3]
[385888120,1758097847058,-480.0,0.00022739,3]
[385888122,1758097847067,-175.40271566,0.00022739,3]
[385888124,1758097847079,-304.59728434,0.00022739,3]
[385888126,1758097847088,-306.48792789,0.00022739,3]
[385888129,1758097847099,-173.51207211,0.00022739,3]
[385888131,1758097847109,-480.0,0.00022739,3]
[385888133,1758097847118,-480.0,0.00022739,3]
[385888134,1758097847128,-480.0,0.00022739,3]
[385888136,1758097847137,-480.0,0.00022739,3]
[385888138,1758097847146,-480.0,0.00022739,3]
[385888140,1758097847155,-841.78,0.00022739,3]
[385888142,1758097847165,-480.0,0.00022739,3]
[385888144,1758097847174,-480.0,0.00022739,3]
[385888146,1758097847183,-1052.06,0.00022739,3]
[385888148,1758097847193,-898.64,0.00022739,3]
[385888150,1758097847202,-480.0,0.00022739,3]
[385888152,1758097847211,-480.0,0.00022739,3]
[385888154,1758097847221,-480.0,0.00022739,3]
[385888156,1758097847231,-707.91,0.00022739,3]
[385888158,1758097847240,-516.5,0.00022739,3]
[385888160,1758097847249,-480.0,0.00022739,3]
[385888162,1758097847259,-481.31,0.00022739,3]
[385888164,1758097847268,-480.0,0.00022739,3]
[385888166,1758097847278,-1414.3,0.00022739,3]
[385888168,1758097847287,-480.0,0.00022739,2]
[385888170,1758097847296,-480.0,0.00022739,3]
[385888172,1758097847305,-480.0,0.00022739,3]
[385888174,1758097847314,-480.0,0.00022739,3]
[385888176,1758097847326,-480.0,0.00022739,3]
[385888178,1758097847336,-164.89977214,0.00022753,2]
[385888180,1758097847348,-216.53418658,0.00022753,2]
[385888182,1758097847357,-502.38715131,0.00022798,2]
[385888184,1758097847366,-500.0,0.00022802,2]
[385888186,1758097847375,-500.0,0.00022821,2]
[385888188,1758097847385,-267.63955444,0.00022821,2]
[385888190,1758097847396,-232.36044556,0.00022821,2]
[385888192,1758097847405,-501.210113,0.00022844,2]
[385888194,1758097847415,-253.99619689,0.00022844,2]
[385888196,1758097847425,-490.63782058,0.00022854,2]
[385888198,1758097847434,-502.04315981,0.00022856,2]
[385888200,1758097847444,-500.0,0.00022856,2]
[385888202,1758097847453,-610.28903898,0.00022859,2]
[385888204,1758097847462,-500.0,0.00022864,2]
[385888206,1758097847472,-162.68583456,0.00022864,2]
[385888208,1758097847481,-456.17738863,0.0002288,2]
[385888209,1758097847492,-44.21255984,0.0002288,2]
[385888210,1758097847502,-4199.81188431,0.0002289,2]
[385888211,1758097847512,-550.0,0.000229,2]
[385888212,1758097847521,-501.1611118,0.00022973,2]
[385888213,1758097847531,-500.0,0.00022973,2]
[385888214,1758097847541,-278.61568617,0.00022973,2]
[385888215,1758097847551,-500.0,0.00022973,2]
[385888216,1758097847566,-500.0,0.00022973,2]
[385888218,1758097847584,-500.0,0.00022973,2]
[385888219,1758097847593,-9411.80335909,0.0002299,2]
[385888220,1758097847605,-33951.46813743,0.0002299,2]
[385888221,1758097847614,-1000.0,0.0002299,2]
[385888222,1758097847623,-1000.0,0.0002299,2]
[385888223,1758097847633,-1000.0,0.0002299,2]
[385888224,1758097847642,-1000.0,0.0002299,2]
[385888225,1758097847652,-129.99419891,0.0002299,2]
[385888227,1758097847663,-870.00580109,0.0002299,2]
[385888228,1758097847672,-1000.0,0.0002299,2]
[385888229,1758097847681,-1000.0,0.0002299,2]
[385888230,1758097847691,-1000.0,0.0002299,2]
[385888231,1758097847700,-214.476338,0.0002299,2]
[385888232,1758097847709,-87.7772483,0.00023,3]
[385888233,1758097847720,-145.56792305,0.00023,3]
[385888234,1758097847730,-217.90857035,0.00023,3]
[385888235,1758097847740,-710.78599023,0.00023,3]
[385888236,1758097847750,-1376.194984,0.00023013,2]
[385888237,1758097847759,-480.0,0.00023013,3]
[385888238,1758097847769,-278.75150376,0.00023013,3]
[385888239,1758097847778,-480.0,0.00023013,3]
[385888240,1758097847787,-480.0,0.00023013,3]
[385888241,1758097847796,-480.0,0.00023013,3]
[385888242,1758097847805,-480.0,0.00023013,3]
[385888243,1758097847815,-480.0,0.00023013,3]
[385888244,1758097847825,-480.0,0.00023013,3]
[385888245,1758097847834,-480.0,0.00023013,3]
[385888246,1758097847843,-480.0,0.00023013,3]
[385888247,1758097847852,-480.0,0.00023013,3]
[385888248,1758097847862,-536.38,0.00023013,3]
[385888249,1758097847871,-3329.21915682,0.00023013,3]
[385888250,1758097847883,-829.91084318,0.00023013,3]
[385888251,1758097847892,-890.08,0.00023013,3]
[385888252,1758097847902,-737.95,0.00023013,3]
[385888253,1758097847911,-480.0,0.00023013,3]
[385888254,1758097847920,-628.2046043,0.00023013,3]
[385888255,1758097847929,-2487.61,0.00023013,3]
[385888256,1758097847938,-480.0,0.00023013,3]
[385888257,1758097847948,-480.0,0.00023013,3]
[385888258,1758097847957,-1299.27,0.00023013,3]
[385888259,1758097847966,-2908.31976768,0.00023013,3]
[385888260,1758097847977,-694.50938659,0.00023013,3]
[385888549,1758097896762,326.587713,0.000199,2]
[385888550,1758097896847,326.58771288,0.00021149,2]
[385888551,1758097922102,3770.28,0.00020554,2]
[385888553,1758098011100,699.26641218,0.00020568,2]
[385888554,1758098011122,3023.03358782,0.00020568,2]
[385888555,1758098081395,311.8042234,0.000199,2]
[385888556,1758098083735,311.80422316,0.00021149,2]
[385888557,1758098181710,3735.6,0.00020415,2]
[385888558,1758098263236,2617.76796562,0.00020441,2]
[385888559,1758098263405,1132.07203438,0.00020441,2]
[385888561,1758098270572,291.01727522,0.000199,2]
[385888562,1758098270655,291.01727494,0.00021149,2]
[385888565,1758098345021,3702.12,0.00020579,2]
[385888567,1758098433036,3734.53,0.00020561,2]